Cogmind - Beta 10.2 @@@ ROGUE MODE // 2021.08.17 @ 12:40:12 Player: sentrybuster Result: Destroyed by P-80 Master with Gamma Rifle Performance ------------- Evolutions (7) 3500 Regions Visited (19) 3800 Robots Destroyed (128) 640 Value Destroyed (5184) 5184 Prototype IDs (29) 580 Alien Tech Used (0) 0 Bonus (1576) 1576 TOTAL SCORE: 15280 Bonus ------- High Alert Combat Kills 181 Follower Combat Kills 646 Met Data Miner 300 Scanned by Researcher 500 Friendly Fire -51 Cogmind --------- Core Integrity 0/1300 Matter 230/300 Energy 18/100 System Corruption 2% Temperature Cool (0) Movement Core (550) Ox10 Location -3/Testing Parts ------- > --- POWER (1) -------- (None) > --- PROPULSION (6) --- Biometal Heavy Treads Biometal Heavy Treads Flexi-carbon Leg Flexi-carbon Leg > --- UTILITY (10) ----- Enhanced Optical Array Advanced Targeting Computer SHELL Armor Ghost Barrier > --- WEAPON (4) ------- Gravity Flail > --- INVENTORY (4) ---- Antimatter Reactor High-capacity Storage Unit Improved Propulsion Shielding Linear Accelerator Peak State ------------ > --- POWER ------------ (None) > --- PROPULSION ------- Biometal Heavy Treads Biometal Heavy Treads Flexi-carbon Leg Flexi-carbon Leg > --- UTILITY ---------- Enhanced Optical Array Advanced Targeting Computer SHELL Armor Ghost Barrier > --- WEAPON ----------- Gravity Flail > --- INVENTORY -------- Antimatter Reactor High-capacity Storage Unit Improved Propulsion Shielding Linear Accelerator [Rating: 101] Favorites ----------- Power Antimatter Reactor Engine Ion Engine Power Core Micro Fission Core Reactor Antimatter Reactor Propulsion Aluminum Leg Treads Light Treads Leg Aluminum Leg Wheel Armored Huge Wheel Hover Unit Linear Gravjet Flight Unit Impulse Thruster Utility Advanced Targeting Computer Device Advanced Sensor Array Storage Medium Storage Unit Processor Advanced Targeting Computer Hackware Makeshift Hacking Suite Protection Improved Medium Armor Plating Weapon Mini Assault Cannon Energy Gun EM Pulse Gun Energy Cannon Proton Cannon Ballistic Gun Minigun Ballistic Cannon Mini Assault Cannon Impact Weapon Heavy Mace Piercing Weapon Enhanced Force Lance Build | -11 -10 -9 -8 -7 -7 -7 -7 -7 -7 -6 -6 -6 -6 -5 -4 -4 -4 -3 -3 ------- Run | Scr Mat Mat Mat Fac Was Fac Low Low Dat Pro Fac Low Low Fac Fac Upp Upp Res Tes Slots Evolved 14 | . . 2 2 2 . . . . . . 2 . . 2 2 . . 2 . Power . | . . . . . . . . . . . . . . . . . . . . Propulsion 4 | . . . 1 . . . . . . . 1 . . . . . . 2 . Utility 8 | . . 2 1 1 . . . . . . 1 . . 1 2 . . . . Weapon 2 | . . . . 1 . . . . . . . . . 1 . . . . . Parts Attached 169 | 6 5 24 10 6 1 5 3 2 . 6 12 16 . 28 22 2 . 9 12 Power 10 | 1 . 2 . . . . 1 . . 1 . 2 . 1 . 1 . . 1 Engine 4 | 1 . 2 . . . . . . . . . 1 . . . . . . . Core 2 | . . . . . . . 1 . . . . . . 1 . . . . . Reactor 4 | . . . . . . . . . . 1 . 1 . . . 1 . . 1 Propulsion 46 | 2 2 6 2 1 . 1 . . . 1 3 3 . 9 7 . . 4 5 Treads 9 | . . . . . . . . . . . . 3 . 2 1 . . . 3 Leg 30 | 2 2 6 2 1 . 1 . . . 1 3 . . 6 4 . . . 2 Wheel 3 | . . . . . . . . . . . . . . . 2 . . 1 . Hover 2 | . . . . . . . . . . . . . . 1 . . . 1 . Flight 2 | . . . . . . . . . . . . . . . . . . 2 . Utility 58 | 1 2 6 4 2 . 2 2 2 . 4 5 9 . 9 3 1 . 2 4 Device 30 | . 2 2 1 1 . . 1 2 . 4 3 5 . 3 3 1 . 2 . Storage 6 | 1 . 2 . . . . . . . . . . . 2 . . . . 1 Processor 11 | . . 2 2 1 . 1 1 . . . . 1 . 3 . . . . . Hackware 2 | . . . . . . . . . . . 1 . . . . . . . 1 Protection 9 | . . . 1 . . 1 . . . . 1 3 . 1 . . . . 2 Artifact . | . . . . . . . . . . . . . . . . . . . . Weapon 55 | 2 1 10 4 3 1 2 . . . . 4 2 . 9 12 . . 3 2 Energy Gun 7 | 1 1 . . . . . . . . . . . . . 5 . . . . Energy Cannon 7 | . . . . . . . . . . . . . . 4 3 . . . . Ballistic Gun 19 | 1 . 3 1 1 1 1 . . . . 1 1 . 5 3 . . 1 . Ballistic Cannon 11 | . . 4 1 1 . 1 . . . . 2 . . . 1 . . . 1 Launcher . | . . . . . . . . . . . . . . . . . . . . Special Weapon . | . . . . . . . . . . . . . . . . . . . . Impact Weapon 8 | . . 3 2 1 . . . . . . . . . . . . . 1 1 Slashing Weapon . | . . . . . . . . . . . . . . . . . . . . Piercing Weapon 3 | . . . . . . . . . . . 1 1 . . . . . 1 . Special Melee Weapon . | . . . . . . . . . . . . . . . . . . . . Unidentified Prototypes 10 | . . . . 1 . . . . . 2 1 . . 1 . . . 3 2 Parts Lost 57 | . . 1 . . . . . . . 2 2 15 1 3 25 2 . 6 . Power 2 | . . . . . . . . . . . . 2 . . . . . . . Propulsion 19 | . . . . . . . . . . . . 5 1 1 8 1 . 3 . Utility 17 | . . 1 . . . . . . . 2 . 5 . 1 4 1 . 3 . Weapon 19 | . . . . . . . . . . . 2 3 . 1 13 . . . . Highest Loss Streak 17 | . . 1 . . . . . . . 2 1 7 1 2 17 2 . 3 . Average Slot Usage (%) 82 | . 95 89 98 100 100 100 100 100 100 99 99 72 33 74 85 44 26 22 30 Engine 2 | . 14 11 9 7 7 7 3 . . . . . . . . . . . . Core 1 | . . . . . . . 3 7 7 3 . . . 2 5 . . . . Reactor 1 | . . . . . . . . . . 3 6 5 . . . 4 . . . Treads 1 | . . . . . . . . . . . . 1 13 4 2 . . . 5 Leg 18 | . 27 22 26 23 23 23 23 23 23 23 25 12 . 12 13 . . . 6 Device 7 | . 11 2 8 7 7 7 7 7 7 10 13 8 6 5 12 4 . . . Storage 7 | . 14 20 10 7 7 7 7 7 7 7 6 5 . 4 5 4 . . . Processor 17 | . . 12 16 23 23 23 23 23 23 18 13 14 13 25 26 26 26 18 9 Protection 3 | . . . 8 7 7 7 7 7 7 7 6 6 . 1 . . . . . Ballistic Gun 7 | . 14 9 8 12 15 10 7 7 7 7 5 10 . 8 9 . . . . Ballistic Cannon 6 | . . 8 5 7 7 11 15 15 15 15 13 3 . . 3 . . . . Naked Turns . | . . . . . . . . . . . . . . . . . . . . Heaviest Build 56 | 13 14 22 29 32 32 35 39 39 39 47 56 55 1 45 47 21 . 8 3 Greatest Support 78 | 20 20 20 35 43 43 50 50 50 50 61 78 78 3 75 75 28 3 11 75 Greatest Overweight (x) 8 | 1 . 1 1 . . . . . . . . 8 . 2 1 . . 2 . Average Overweight (x) . | . . . . . . . . . . . . . . . . . . . . Largest Inventory Capacity 12 | 6 6 8 8 8 8 8 8 8 8 8 8 8 4 12 8 8 4 4 12 Average Capacity 7 | 5 6 7 8 8 8 8 8 8 8 8 8 7 4 7 8 7 4 4 4 Most Carried 8 | 4 6 8 8 8 8 8 8 8 8 8 8 8 4 8 8 2 2 4 4 Average Carried 6 | 2 5 6 7 7 7 7 7 8 8 7 7 5 4 5 6 . 2 3 3 Final Capacity 8 | 6 6 8 8 8 8 8 8 8 8 8 8 4 4 8 8 4 4 4 4 Final Carried 8 | 4 6 8 8 8 8 8 8 8 8 8 8 4 4 8 2 2 2 4 4 Class Distribution -------------------- 53% | Mutant 14% | Skirmisher 10% | Scavenger-Mutant 6% | Scavenger-Tank 4% | Gunner 3% | Scavenger-Skirmisher 3% | Tank Dominant Class ---------------- Mutant | -10/Materials Mutant | -9/Materials Mutant | -8/Materials Skirmisher | -7/Factory Skirmisher | -7/Waste Skirmisher | -7/Factory Skirmisher | -7/Lower Caves Skirmisher | -7/Lower Caves Mutant | -7/Data Miner Scavenger-Tank | -6/Proximity Caves Mutant | -6/Factory Mutant | -6/Lower Caves Mutant | -6/Lower Caves Mutant | -5/Factory Scavenger-Mutant | -4/Factory Mutant | -4/Upper Caves Mutant | -4/Upper Caves Mutant | -3/Research Hacker-Mutant | -3/Testing Resources | -11 -10 -9 -8 -7 -7 -7 -7 -7 -7 -6 -6 -6 -6 -5 -4 -4 -4 -3 -3 ----------- Run | Scr Mat Mat Mat Fac Was Fac Low Low Dat Pro Fac Low Low Fac Fac Upp Upp Res Tes Matter Collected 5087 | 196 186 653 271 22 298 101 89 115 . 317 1039 426 . 691 481 . . 25 177 Remotely . | . . . . . . . . . . . . . . . . . . . . Salvage Created 5620 | . 195 785 163 22 . 101 . 15 . 293 1415 377 . 940 900 . . . 414 Parts 209 | . 13 24 5 . . 9 . 3 . 14 48 15 . 35 40 . . . 3 Haulers Intercepted 6 | . . 1 1 . . 1 . . . . 3 . . . . . . . . Recyclers Shooed 6 | . 1 1 . . . . . . . . 2 . . 2 . . . . . Parts Field Recycled . | . . . . . . . . . . . . . . . . . . . . Retrieved Matter . | . . . . . . . . . . . . . . . . . . . . Parts Self-Destructed 61 | . . . . . . . 3 10 . 31 . 17 . . . . . . . Prevented 5 | . . . . . . . . . . . . 5 . . . . . . . Kills | -11 -10 -9 -8 -7 -7 -7 -7 -7 -7 -6 -6 -6 -6 -5 -4 -4 -4 -3 -3 ------- Run | Scr Mat Mat Mat Fac Was Fac Low Low Dat Pro Fac Low Low Fac Fac Upp Upp Res Tes Combat Hostiles Destroyed 92 | . 3 15 1 . . 2 . 2 . 10 18 11 . 7 18 . . . 5 Guns 37 | . 3 7 . . . . . . . . 4 6 . 5 12 . . . . Cannons 40 | . . 8 1 . . 2 . 2 . 10 11 4 . . 2 . . . . AOE 7 | . . . . . . . . . . . 3 1 . . 3 . . . . Classes Destroyed 16 | . 3 4 1 . . . . 2 . 2 3 . . . . . . . 1 Worker 4 | . . . 1 1 . . . . . . 1 . . . 1 . . . . Builder 3 | . . . . . . . . . . . 2 . . 1 . . . . . Tunneler 1 | . . . . . . . . . . . 1 . . . . . . . . Hauler 6 | . . 1 1 . . 1 . . . . 3 . . . . . . . . Recycler 10 | . . 3 1 . . . . . . . 3 . . 3 . . . . . Operator 3 | . 1 . . . . 1 . . . . . . . . 1 . . . . Watcher 8 | . 1 1 . . . 1 . . . . 2 . . 2 1 . . . . Swarmer 19 | . . . . . . . . 1 . 5 . 5 . . 8 . . . . Grunt 42 | . 3 13 . . . 1 . . . 3 10 2 . 2 3 . . . 5 Brawler 2 | . . 1 . . . . . . . . . 1 . . . . . . . Duelist 3 | . . . . . . . . . . 1 1 1 . . . . . . . Researcher 1 | . . . . . . . . . . . . . . . . . . . 1 Sentry 13 | . . 1 1 . . 1 . . . . 5 2 . 2 1 . . . . Hunter 6 | . . . . . . . . . . 1 . . . 1 4 . . . . Programmer 6 | . . . . . . . . . . . 2 . . 2 2 . . . . Behemoth 1 | . . . . . . . . 1 . . . . . . . . . . . Best Kill Streak 7 | . 2 7 1 1 . 2 . 1 . 7 5 4 . 3 6 . . . 5 Combat Bots Only 7 | . 1 6 1 . . 1 . 1 . 7 4 3 . 2 5 . . . 5 Max Kills in Single Turn 4 | . 1 1 1 1 . 1 . 1 . 2 4 1 . 2 2 . . . 1 Gunslinging . | . . . . . . . . . . . . . . . . . . . . Exploded 3 | . . . . . . . . . . . 3 1 . . 2 . . . . Melee . | . . . . . . . . . . . . . . . . . . . . Uniques/NPCs Destroyed . | . . . . . . . . . . . . . . . . . . . . Combat | -11 -10 -9 -8 -7 -7 -7 -7 -7 -7 -6 -6 -6 -6 -5 -4 -4 -4 -3 -3 -------- Run | Scr Mat Mat Mat Fac Was Fac Low Low Dat Pro Fac Low Low Fac Fac Upp Upp Res Tes Damage Taken 11483 | . 227 649 76 . . . 33 22 . 678 719 2064 73 1155 3143 258 . 1495 891 Core 2638 | . 57 75 . . . . . . . 102 53 159 16 136 640 87 . 1115 198 Absorbed by Shields 123 | . . . . . . . 12 8 . 103 . . . . . . . . . Core Remaining (%) 79 | 100 77 81 100 . . . . . . 85 . . 73 86 . . 36 . . Volleys Fired 397 | . 18 67 10 . . 6 1 9 . 26 73 44 . 69 74 . . . . Largest 4 | . 2 2 2 . . 3 3 3 . 3 3 3 . 4 4 . . . . Hottest 231 | . 60 55 58 . . 117 117 117 . 117 149 116 . 174 231 . . . . Shots Fired 789 | . 36 128 19 . . 18 3 21 . 45 173 83 . 118 145 . . . . Gun 449 | . 36 65 10 . . 7 1 7 . 10 52 62 . 103 96 . . . . Cannon 340 | . . 63 9 . . 11 2 14 . 35 121 21 . 15 49 . . . . Launcher . | . . . . . . . . . . . . . . . . . . . . Special . | . . . . . . . . . . . . . . . . . . . . Kinetic 710 | . 18 128 19 . . 18 3 21 . 45 173 83 . 103 99 . . . . Thermal 12 | . . . . . . . . . . . . . . . 12 . . . . Explosive . | . . . . . . . . . . . . . . . . . . . . Electromagnetic 67 | . 18 . . . . . . . . . . . . 15 34 . . . . Robot Hit Streak 21 | . 7 21 10 . . 7 4 6 . 9 10 9 . 18 15 . . . . Robot Miss Streak 7 | . 4 5 1 . . 2 1 4 . 7 7 4 . 2 7 . . . . Penetration Max . | . . . . . . . . . . . . . . . . . . . . Secondary Targets 2 | . . . . . . . . . . . . 2 . . . . . . . Max Gunslinging Chain 1 | . . . . . . . . . . . . 1 . . . . . . . Shots Hit Robots 533 | . 21 88 15 1 . 12 2 14 . 30 113 59 . 74 78 . . 1 25 Core Hits 246 | . 9 33 4 . . 10 . 5 . 20 85 17 . 25 38 . . . . Critical Hits 27 | . . 1 1 . . . . . . 1 5 2 . 6 10 . . 1 . Critical Kills 12 | . . . . . . . . . . 1 2 1 . 2 6 . . . . Critical Parts Destroyed 15 | . . 1 1 . . . . . . . 3 1 . 4 4 . . 1 . Melee Attacks 66 | . . 8 5 1 . . . . . . 1 3 . . . . . 7 41 Impact 55 | . . 8 5 1 . . . . . . . . . . . . . . 41 Slashing . | . . . . . . . . . . . . . . . . . . . . Piercing 11 | . . . . . . . . . . . 1 3 . . . . . 7 . Sneak Attacks 7 | . . 3 1 1 . . . . . . . . . . . . . 1 1 Combat Hostiles 1 | . . . . . . . . . . . . . . . . . . . 1 Follow-up Attacks . | . . . . . . . . . . . . . . . . . . . . Damage Inflicted 14193 | . 297 1583 362 57 . 232 15 191 . 586 3212 1457 1 1948 2814 . . 206 1232 Guns 5576 | . 297 618 124 . . 35 . 54 . 16 571 1058 . 1519 1284 . . . . Cannons 5489 | . . 696 139 . . 197 15 137 . 570 2218 399 . 396 722 . . . . Explosions 1235 | . . . . . . . . . . . 411 . . 33 791 . . . . Melee 1851 | . . 269 99 57 . . . . . . . . . . . . . 194 1232 Ramming 42 | . . . . . . . . . . . 12 . 1 . 17 . . 12 . Kinetic 9647 | . 160 1314 263 . . 232 15 191 . 586 2789 1457 . 1519 1121 . . . . Thermal 1023 | . . . . . . . . . . . . . . 33 990 . . . . Explosive 509 | . . . . . . . . . . . 411 . . . 98 . . . . Electromagnetic 1121 | . 137 . . . . . . . . . . . . 396 588 . . . . Impact 1657 | . . 269 99 57 . . . . . . . . . . . . . . 1232 Slashing . | . . . . . . . . . . . . . . . . . . . . Piercing 194 | . . . . . . . . . . . . . . . . . . 194 . Highest Corruption 4 | . . 4 . . . . . . . . . 4 4 1 2 2 2 1 2 Average Corruption 2 | . . 4 . . . . . . . . . 2 4 1 1 2 2 1 1 Corruption Purged . | . . . . . . . . . . . . . . . . . . . . Effects 37 | . . 14 . . . . . . . . . 11 . 1 7 1 . . 3 Message Errors 7 | . . 3 . . . . . . . . . 4 . . . . . . . Matter Fused 5 | . . 4 . . . . . . . . . 1 . . . . . . . Heat Flow Errors 2 | . . . . . . . . . . . . 2 . . . . . . . Energy Discharges 11 | . . 1 . . . . . . . . . 3 . 1 3 1 . . 2 Data Loss (minor) 3 | . . 2 . . . . . . . . . 1 . . . . . . . Targeting Errors 6 | . . 1 . . . . . . . . . . . . 4 . . . 1 Weapon Failures 3 | . . 3 . . . . . . . . . . . . . . . . . Overload Shots . | . . . . . . . . . . . . . . . . . . . . Overflow Damage 669 | . . 179 74 17 . . . . . . 33 25 . 6 98 . . . 237 Projectiles 55 | . . 5 . . . . . . . . 22 25 . 3 . . . . . Explosions 112 | . . . . . . . . . . . 11 . . 3 98 . . . . Melee 502 | . . 174 74 17 . . . . . . . . . . . . . . 237 Knockbacks 74 | . . 14 1 1 . 2 . . . 8 32 5 . . 2 . . . 9 Impact 12 | . . 3 1 1 . . . . . . . . . . . . . . 7 Kinetic 52 | . . 10 . . . 2 . . . 7 26 5 . . 2 . . . . Secondary 10 | . . 1 . . . . . . . 1 6 . . . . . . . 2 Self-Inflicted Damage 111 | . . . . . . . . . . . . . . 23 83 . . 5 . Shots 3 | . . . . . . . . . . . . . . 1 2 . . . . Rammed 5 | . . . . . . . . . . . . . 1 . 2 . . 2 . Targets Rammed 7 | . . . . . . . . . . . 2 . 1 . 2 . . 2 . Kicked 2 | . . . . . . . . . . . 2 . . . . . . . . Crushed . | . . . . . . . . . . . . . . . . . . . . Highest Temperature 322 | . 108 9 49 . . 90 42 168 . 230 322 213 . 179 153 . . . . Average Temperature 69 | . 55 2 25 . . 31 26 69 . 135 79 55 . 72 51 . . . . Received Heat Transfer 1911 | . 129 279 36 . . . . . . 87 294 480 . 237 111 9 . 144 105 Effects 4 | . . . . . . . . . . 1 3 . . . . . . . . Energy Bleed 1 | . . . . . . . . . . 1 . . . . . . . . . Interference 3 | . . . . . . . . . . . 3 . . . . . . . . Siege Activations . | . . . . . . . . . . . . . . . . . . . . Robots Corrupted 3 | . . . . . . . . . . . . . . 2 1 . . . . Combat Hostiles 3 | . . . . . . . . . . . . . . 2 1 . . . . Parts Fried 18 | . . 2 1 1 . . . . . . . . . 2 6 . . . 6 Impact Corruptions 16 | . . 5 1 1 . . . . . . . . . . . . . . 9 Robots Melted . | . . . . . . . . . . . . . . . . . . . . Combat Hostiles . | . . . . . . . . . . . . . . . . . . . . Parts Melted 3 | . . . . . . . . . . 2 . . . 1 . . . . . Heat Transferred 809 | . . . . . . . . . . . . . . 50 759 . . . . Parts Sabotaged 1 | . . . . . . . . . . . . . . . 1 . . . . Parts Stolen . | . . . . . . . . . . . . . . . . . . . . Parts Stripped . | . . . . . . . . . . . . . . . . . . . . Power Chain Reactions 2 | . . . . . . . . . . . . . . 1 1 . . . . Missiles Intercepted . | . . . . . . . . . . . . . . . . . . . . Alert | -11 -10 -9 -8 -7 -7 -7 -7 -7 -7 -6 -6 -6 -6 -5 -4 -4 -4 -3 -3 ------- Run | Scr Mat Mat Mat Fac Was Fac Low Low Dat Pro Fac Low Low Fac Fac Upp Upp Res Tes Peak Influence 603 | . 105 302 87 44 15 603 . . . . 357 . . 362 534 . . 359 443 Initial 184 | . . 20 . 39 15 10 . . . . 111 . . 81 177 . . 184 148 Average 161 | . 39 173 31 40 15 254 . . . . 152 . . 136 352 . . 207 304 Maximum Alert Level 2 | . . 1 . . . 2 . . . . 1 . . 1 2 . . 1 2 Low Security (%) 68 | 100 100 54 100 100 100 66 . . . . 80 . . 62 20 . . 79 20 Level 1 26 | . . 45 . . . 8 . . . . 19 . . 37 40 . . 21 75 Level 2 5 | . . . . . . 24 . . . . . . . . 39 . . . 4 Level 3 . | . . . . . . . . . . . . . . . . . . . . Level 4 . | . . . . . . . . . . . . . . . . . . . . Level 5 . | . . . . . . . . . . . . . . . . . . . . High Security . | . . . . . . . . . . . . . . . . . . . . Max Security . | . . . . . . . . . . . . . . . . . . . . Squads Dispatched 22 | . 1 2 . . . . . . . . 7 . . 3 3 . . 2 4 Investigation 1 | . . . . . . . . . . . 1 . . . . . . . . Extermination 6 | . . . . . . . . . . . 2 . . 2 1 . . . 1 Reinforcement 11 | . 1 2 . . . . . . . . 1 . . 1 1 . . 2 3 Assault 1 | . . . . . . . . . . . . . . . 1 . . . . Garrison 3 | . . . . . . . . . . . 3 . . . . . . . . Intercept . | . . . . . . . . . . . . . . . . . . . . Construction Impeded 2 | . . 1 . . . . . . . . . . . . . . . 1 . Haulers Reinforced 2 | . . . . . . . . . . . 1 . . . 1 . . . . Stealth | -11 -10 -9 -8 -7 -7 -7 -7 -7 -7 -6 -6 -6 -6 -5 -4 -4 -4 -3 -3 --------- Run | Scr Mat Mat Mat Fac Was Fac Low Low Dat Pro Fac Low Low Fac Fac Upp Upp Res Tes Distress Signals 7 | . . 1 . . . . . . . . 1 . . . 2 . . 3 . Communications Jammed . | . . . . . . . . . . . . . . . . . . . . Distress Signals . | . . . . . . . . . . . . . . . . . . . . Times Spotted 213 | . 8 22 6 . . 5 3 6 . 15 24 28 4 16 33 6 . 25 12 Peak Tracking Total 10 | . 2 5 4 . . 2 3 4 . 8 4 9 4 4 7 6 . 10 6 Tactical Retreats 31 | . . 1 . . . . . 1 . 1 1 12 . 1 3 2 . 6 3 Traps | -11 -10 -9 -8 -7 -7 -7 -7 -7 -7 -6 -6 -6 -6 -5 -4 -4 -4 -3 -3 ------- Run | Scr Mat Mat Mat Fac Was Fac Low Low Dat Pro Fac Low Low Fac Fac Upp Upp Res Tes Traps Triggered 6 | . . . . 1 . . . . . . 1 . . 3 1 . . . . Indirectly . | . . . . . . . . . . . . . . . . . . . . Trap Hack Attempts . | . . . . . . . . . . . . . . . . . . . . Triggered . | . . . . . . . . . . . . . . . . . . . . Disarmed . | . . . . . . . . . . . . . . . . . . . . Reprogrammed . | . . . . . . . . . . . . . . . . . . . . Reused . | . . . . . . . . . . . . . . . . . . . . Traps Extracted . | . . . . . . . . . . . . . . . . . . . . Installed . | . . . . . . . . . . . . . . . . . . . . Triggered 2 | . . . . . . . . . . . . 2 . . . . . . . Machines | -11 -10 -9 -8 -7 -7 -7 -7 -7 -7 -6 -6 -6 -6 -5 -4 -4 -4 -3 -3 ---------- Run | Scr Mat Mat Mat Fac Was Fac Low Low Dat Pro Fac Low Low Fac Fac Upp Upp Res Tes Machines Disabled 24 | . . 2 . . . 4 . . . . 3 . . 4 9 . . . 2 Max in Single Turn 3 | . . 1 . . . . . . . . 2 . . 3 3 . . . 1 Garrison Access 1 | . . . . . . 1 . . . . . . . . . . . . . Machines Sabotaged . | . . . . . . . . . . . . . . . . . . . . Garrisons Compromised . | . . . . . . . . . . . . . . . . . . . . Overloaded Fab Kills . | . . . . . . . . . . . . . . . . . . . . Fab Network Shutdowns . | . . . . . . . . . . . . . . . . . . . . Hacking | -11 -10 -9 -8 -7 -7 -7 -7 -7 -7 -6 -6 -6 -6 -5 -4 -4 -4 -3 -3 --------- Run | Scr Mat Mat Mat Fac Was Fac Low Low Dat Pro Fac Low Low Fac Fac Upp Upp Res Tes Machines Accessed 36 | . 3 3 4 1 . 3 . . 3 . 11 . . 1 2 . . 2 3 Terminals 24 | . 2 2 4 1 . 2 . . . . 8 . . 1 2 . . . 2 Fabricators 1 | . . . . . . . . . . . . . . . . . . . 1 Repair Stations 3 | . 1 1 . . . . . . . . 1 . . . . . . . . Recycling Units 4 | . . . . . . . . . . . 2 . . . . . . 2 . Scanalyzers . | . . . . . . . . . . . . . . . . . . . . Garrison Access 1 | . . . . . . 1 . . . . . . . . . . . . . Total Hacks 104 | . 13 13 10 1 . 6 . . 22 . 24 . . 3 4 . . 3 5 Successful 71 | . 8 10 5 . . 1 . . 22 . 15 . . 3 3 . . 2 2 Failed 33 | . 5 3 5 1 . 5 . . . . 9 . . . 1 . . 1 3 Catastrophic 5 | . . . 2 . . 1 . . . . 1 . . . 1 . . . . Database Lockouts . | . . . . . . . . . . . . . . . . . . . . Manual 30 | . 9 1 6 1 . . . . . . 7 . . 2 4 . . . . Terminals 56 | . 9 5 10 1 . 4 . . . . 16 . . 3 4 . . . 4 Fabricators 1 | . . . . . . . . . . . . . . . . . . . 1 Repair Stations 16 | . 4 8 . . . . . . . . 4 . . . . . . . . Recycling Units 7 | . . . . . . . . . . . 4 . . . . . . 3 . Scanalyzers . | . . . . . . . . . . . . . . . . . . . . Garrison Access 2 | . . . . . . 2 . . . . . . . . . . . . . Terminal Hacks 45 | . 1 2 4 . . . . . 22 . 10 . . 2 3 . . . 1 Record 6 | . . . . . . . . . 6 . . . . . . . . . . Part Schematic 7 | . . . . . . . . . 7 . . . . . . . . . . Robot Schematic 6 | . . . . . . . . . 6 . . . . . . . . . . Robot Analysis 2 | . 1 . 1 . . . . . . . . . . . . . . . . Prototype ID Bank 6 | . . . 1 . . . . . 3 . 2 . . . . . . . . Open Door 1 | . . . . . . . . . . . . . . . . . . . 1 Terminal Index 4 | . . . 1 . . . . . . . 1 . . 1 1 . . . . Alert Level 5 | . . 1 . . . . . . . . 3 . . . 1 . . . . Unreport Threat 2 | . . 1 . . . . . . . . . . . . 1 . . . . Locate Traps 3 | . . . 1 . . . . . . . 1 . . 1 . . . . . Transport Status 2 | . . . . . . . . . . . 2 . . . . . . . . Hauler Manifests 1 | . . . . . . . . . . . 1 . . . . . . . . Fabricator Hacks 1 | . . . . . . . . . . . . . . . . . . . 1 Build 1 | . . . . . . . . . . . . . . . . . . . 1 Repair Station Hacks 13 | . 4 7 . . . . . . . . 2 . . . . . . . . Scan Component 7 | . 2 4 . . . . . . . . 1 . . . . . . . . Repair 6 | . 2 3 . . . . . . . . 1 . . . . . . . . Recycling Unit Hacks 3 | . . . . . . . . . . . 1 . . . . . . 2 . Retrieve Components 3 | . . . . . . . . . . . 1 . . . . . . 2 . Scanalyzer . | . . . . . . . . . . . . . . . . . . . . Garrison Access Hacks 1 | . . . . . . 1 . . . . . . . . . . . . . Seal Access 1 | . . . . . . 1 . . . . . . . . . . . . . Unauthorized Hacks 8 | . 3 1 1 . . . . . . . 2 . . 1 . . . . . Terminals 7 | . 3 1 1 . . . . . . . 1 . . 1 . . . . . Track 5 | . 2 1 1 . . . . . . . 1 . . . . . . . . Botnet 2 | . 1 . . . . . . . . . . . . 1 . . . . . Fabricators . | . . . . . . . . . . . . . . . . . . . . Repair Stations . | . . . . . . . . . . . . . . . . . . . . Recycling Units 1 | . . . . . . . . . . . 1 . . . . . . . . Recyclers 1 | . . . . . . . . . . . 1 . . . . . . . . Scanalyzers . | . . . . . . . . . . . . . . . . . . . . Garrison Access . | . . . . . . . . . . . . . . . . . . . . Data Cores Recovered . | . . . . . . . . . . . . . . . . . . . . Used . | . . . . . . . . . . . . . . . . . . . . Hacking Detections 30 | . 3 3 4 1 . 3 . . . . 9 . . 1 2 . . 2 2 Full Trace Events . | . . . . . . . . . . . . . . . . . . . . Feedback Events . | . . . . . . . . . . . . . . . . . . . . Feedback Blocked . | . . . . . . . . . . . . . . . . . . . . Robot Schematics Acquired 6 | . . . . . . . . . 6 . . . . . . . . . . Robots Built . | . . . . . . . . . . . . . . . . . . . . Matter . | . . . . . . . . . . . . . . . . . . . . Time . | . . . . . . . . . . . . . . . . . . . . Total Robot Build Rating . | . . . . . . . . . . . . . . . . . . . . Part Schematics Acquired 7 | . . . . . . . . . 7 . . . . . . . . . . Parts Built 2 | . . . . . . . . . . . . . . . . . . . 2 Matter 278 | . . . . . . . . . . . . . . . . . . . 278 Time 46 | . . . . . . . . . . . . . . . . . . . 46 Total Part Build Rating 18 | . . . . . . . . . . . . . . . . . . . 18 Parts Repaired 6 | . 2 3 . . . . . . . . 1 . . . . . . . . Time 168 | . 52 78 . . . . . . . . 38 . . . . . . . . Parts Recycled . | . . . . . . . . . . . . . . . . . . . . Recycled Matter . | . . . . . . . . . . . . . . . . . . . . Retrieved Matter . | . . . . . . . . . . . . . . . . . . . . Retrieved Components 4 | . . . . . . . . . . . 2 . . . . . . 2 . Parts Scanalyzed . | . . . . . . . . . . . . . . . . . . . . Part Schematics Acquired . | . . . . . . . . . . . . . . . . . . . . Parts Damaged . | . . . . . . . . . . . . . . . . . . . . Bothacking | -11 -10 -9 -8 -7 -7 -7 -7 -7 -7 -6 -6 -6 -6 -5 -4 -4 -4 -3 -3 ------------ Run | Scr Mat Mat Mat Fac Was Fac Low Low Dat Pro Fac Low Low Fac Fac Upp Upp Res Tes Used RIF Installer . | . . . . . . . . . . . . . . . . . . . . Robots Hacked . | . . . . . . . . . . . . . . . . . . . . Non-combat . | . . . . . . . . . . . . . . . . . . . . Combat . | . . . . . . . . . . . . . . . . . . . . Robot Hacks Applied . | . . . . . . . . . . . . . . . . . . . . Relay Couplers Released . | . . . . . . . . . . . . . . . . . . . . Robots Rewired 1 | . . . . . . . . . . . 1 . . . . . . . . Allies Hacked . | . . . . . . . . . . . . . . . . . . . . Hacks Repelled . | . . . . . . . . . . . . . . . . . . . . Allies | -11 -10 -9 -8 -7 -7 -7 -7 -7 -7 -6 -6 -6 -6 -5 -4 -4 -4 -3 -3 -------- Run | Scr Mat Mat Mat Fac Was Fac Low Low Dat Pro Fac Low Low Fac Fac Upp Upp Res Tes Total Allies 22 | . . . . . 20 . . . . 1 1 . . . . . . . . Largest Group 20 | . . . . . 20 20 16 15 6 7 1 . . . . . . . . Highest-Rated Group 602 | . . . . . 602 602 492 457 187 281 32 . . . . . . . . Highest-Rated Ally 94 | . . . . . 35 35 35 35 32 94 32 . . . . . . . . Total Orders 1 | . . . . . . . . . . . 1 . . . . . . . . STAY 1 | . . . . . . . . . . . 1 . . . . . . . . Ally Attacks 129 | . . . . . . 34 18 32 . 35 10 . . . . . . . . Total Damage 4784 | . . . . . . 1577 521 1539 . 716 431 . . . . . . . . Kills 32 | . . . . . . 11 4 8 . 6 3 . . . . . . . . Allies Corrupted . | . . . . . . . . . . . . . . . . . . . . Allies Melted . | . . . . . . . . . . . . . . . . . . . . Intel | -11 -10 -9 -8 -7 -7 -7 -7 -7 -7 -6 -6 -6 -6 -5 -4 -4 -4 -3 -3 ------- Run | Scr Mat Mat Mat Fac Was Fac Low Low Dat Pro Fac Low Low Fac Fac Upp Upp Res Tes Robot Analysis Total 2 | . 1 . 1 . . . . . . . . . . . . . . . . Derelict Logs Recovered 4 | . . . . . . . . 1 . 2 . 1 . . . . . . . Drone Launches . | . . . . . . . . . . . . . . . . . . . . Drone Recoveries . | . . . . . . . . . . . . . . . . . . . . Exploration | -11 -10 -9 -8 -7 -7 -7 -7 -7 -7 -6 -6 -6 -6 -5 -4 -4 -4 -3 -3 ------------- Run | Scr Mat Mat Mat Fac Was Fac Low Low Dat Pro Fac Low Low Fac Fac Upp Upp Res Tes Turns Passed 10540 | 61 502 879 648 133 136 396 381 452 100 550 1761 990 54 1598 705 344 40 500 310 Spaces Moved 7205 | 42 268 384 449 98 101 290 293 344 77 378 1156 658 53 873 383 337 79 678 264 Core 1117 | 6 . . . . . . . . . . . 85 53 119 . 64 79 450 261 Treads 331 | . . . . . . . . . . . . 24 . 305 . . . . 2 Legs 5203 | 36 268 384 449 98 101 290 293 344 77 378 1156 549 . 449 330 . . . 1 Wheels 326 | . . . . . . . . . . . . . . . 53 273 . . . Hover . | . . . . . . . . . . . . . . . . . . . . Flight 228 | . . . . . . . . . . . . . . . . . . 228 . Fastest Speed 40 | 50 120 120 120 120 120 120 123 123 123 120 122 50 50 50 90 50 50 40 50 Average Speed 112 | 112 120 122 121 120 120 120 123 123 123 121 122 127 50 137 119 90 50 62 50 Slowest Speed 450 | 150 120 150 150 120 120 123 123 123 123 123 122 450 50 180 155 100 50 150 145 Overloaded Moves . | . . . . . . . . . . . . . . . . . . . . Propulsion Burnouts . | . . . . . . . . . . . . . . . . . . . . Robots Hopped 7 | . . . . . . . . . . . . . . . . . . 7 . Cave-ins Triggered . | . . . . . . . . . . . . . . . . . . . . Exploration Rate (%) 38 | 4 43 30 44 4 78 14 58 61 72 66 40 67 10 22 13 54 14 34 38 Regions Visited 19 Branch Regions 9 Pre-discovered Areas 1 | . . . . . . . . . 1 . . . . . . . . . . Known Exits Taken 10 | . . . . . . 1 1 1 1 . . 1 1 1 1 1 1 . . Unknown Exits Taken 7 | 1 1 1 1 . . . . . . 1 1 . . . . . . 1 . Scrap Searched 17 | . . . . . . . 4 2 . 4 . 5 1 . . 1 . . . Spaces Dug 92 | . . 5 3 . . . . 1 . . 11 3 . 33 22 . . 5 9 Terrain Destroyed 406 | . . 5 3 . . 1 1 5 . 3 81 12 . 148 133 . . 5 9 Melee 26 | . . 5 3 . . . . . . . 1 3 . . . . . 5 9 Projectile 177 | . . . . . . 1 1 5 . 3 38 9 . 72 48 . . . . AOE 203 | . . . . . . . . . . . 42 . . 76 85 . . . . Terrain Rammed . | . . . . . . . . . . . . . . . . . . . . Walls Destroyed . | . . . . . . . . . . . . . . . . . . . . Machines Disabled . | . . . . . . . . . . . . . . . . . . . . Actions | -11 -10 -9 -8 -7 -7 -7 -7 -7 -7 -6 -6 -6 -6 -5 -4 -4 -4 -3 -3 --------- Run | Scr Mat Mat Mat Fac Was Fac Low Low Dat Pro Fac Low Low Fac Fac Upp Upp Res Tes Total 8793 | 52 411 644 528 112 116 326 313 356 82 432 1368 733 79 1165 507 376 78 737 378 Wait 817 | 1 117 146 36 . 11 18 10 2 6 18 108 4 26 172 18 36 . 33 55 Move 7174 | 41 267 383 448 98 100 289 292 343 76 377 1155 657 52 872 382 336 78 664 264 Hop 7 | . . . . . . . . . . . . . . . . . . 7 . Pick Up 59 | 4 2 3 8 3 2 3 3 . . 2 6 3 . 10 5 . . 5 . Fast Attach 90 | 6 5 9 5 2 . 2 1 . . 3 4 4 . 23 9 . . 9 8 Attach 33 | . . 1 1 2 . 1 . . . 1 3 6 . 1 11 2 . . 4 Detach 20 | . . 2 2 1 . . . . . . . 2 . 4 1 2 . 2 4 Swap 46 | . . 14 4 2 1 2 2 2 . 2 5 6 . 4 2 . . . . Drop 72 | . 2 11 9 3 2 5 4 . . 3 6 4 . 10 3 . . 9 1 Fire 397 | . 18 67 10 . . 6 1 9 . 26 73 44 . 69 74 . . . . Melee 66 | . . 8 5 1 . . . . . . 1 3 . . . . . 7 41 Ram 4 | . . . . . . . . . . . . . 1 . 2 . . 1 . Kick 2 | . . . . . . . . . . . 2 . . . . . . . . Crush . | . . . . . . . . . . . . . . . . . . . . Escape Stasis 1 | . . . . . . . . . . . . . . . . . . . 1 Rewire 5 | . . . . . . . . . . . 5 . . . . . . . . Trap . | . . . . . . . . . . . . . . . . . . . . Miscellaneous . | . . . . . . . . . . . . . . . . . . . . Route ------- -11/Scrapyard -10/Materials -9/Materials -8/Materials (discovered 2 exits: *Fac x2) -7/Factory -7/Waste -7/Factory -7/Lower Caves -7/Lower Caves -7/Data Miner -6/Proximity Caves -6/Factory (discovered 2 exits: *Fac / [*Low]) -6/Lower Caves -6/Lower Caves -5/Factory (discovered 3 exits: *Fac / *Upp x2) -4/Factory -4/Upper Caves -4/Upper Caves -3/Research -3/Testing History --------- Turn | Location | Event 6 | -11/Scrapyard | Discovered new exit (range 16) 62 | -11/Scrapyard | Entered Materials 323 | -10/Materials | Build established: Mutant 355 | -10/Materials | Repaired EM Pulse Gun 382 | -10/Materials | Repaired Aluminum Leg 554 | -10/Materials | Discovered new exit (range 10) 564 | -10/Materials | Entered another Materials area 564 | -9/Materials | Evolved 2 slots: Utility x2 847 | -9/Materials | Repaired Assault Rifle 874 | -9/Materials | Repaired Lgt. Cannon 1206 | -9/Materials | Repaired Lgt. Cannon 1385 | -9/Materials | Discovered new exit (range 17) 1443 | -9/Materials | Entered another Materials area 1443 | -8/Materials | Evolved 2 slots: Propulsion x1, Utility x1 1862 | -8/Materials | Discovered new exit (range 19) 1948 | -8/Materials | Discovered new exit (range 20) 2091 | -8/Materials | Entered Factory 2091 | -7/Factory | Evolved 2 slots: Utility x1, Weapon x1 2224 | -7/Factory | Sucked down chute 2224 | -7/Factory | Entered Waste 2225 | -7/Waste | Joined by Warlord forces that had cleared the area 2336 | -7/Waste | Discovered new exit (range 12) 2348 | -7/Waste | Identified exit to Factory 2360 | -7/Waste | Entered Factory 2360 | -7/Factory | Accompanied by 20 allies 2537 | -7/Factory | Build established: Skirmisher 2725 | -7/Factory | Discovered new exit (range 14) 2742 | -7/Factory | Identified exit to Lower Caves 2756 | -7/Factory | Entered Lower Caves 2756 | -7/Lower Caves | Accompanied by 16 allies 2764 | -7/Lower Caves | Encountered a Warlord checkpoint 3108 | -7/Lower Caves | Discovered new exit (range 15) 3122 | -7/Lower Caves | Identified exit to Lower Caves 3137 | -7/Lower Caves | Entered another Lower Caves area 3137 | -7/Lower Caves | Accompanied by 15 allies 3182 | -7/Lower Caves | Spotted B-75 Beast 3202 | -7/Lower Caves | Destroyed B-75 Beast 3379 | -7/Lower Caves | Encountered a Warlord checkpoint 3559 | -7/Lower Caves | Discovered new exit (range 10) 3572 | -7/Lower Caves | Identified exit to Data Miner 3580 | -7/Lower Caves | Learned Factory terminal intel 3589 | -7/Lower Caves | Entered Data Miner 3589 | -7/Data Miner | Accompanied by 6 allies 3589 | -7/Data Miner | Discovered new exit (range 6) 3608 | -7/Data Miner | Met Data Miner 3635 | -7/Data Miner | Learned location of Section 7 (-2) 3635 | -7/Data Miner | Acquired the access code to Warlord's prototype stash 3652 | -7/Data Miner | Received God Mode back door access code from Data Miner 3682 | -7/Data Miner | Identified exit to Proximity Caves 3689 | -7/Data Miner | Entered Proximity Caves 3689 | -6/Proximity Caves | Accompanied by 6 allies 3712 | -6/Proximity Caves | Escorted by Enhanced Grunt 3813 | -6/Proximity Caves | Attracted the attention of an 0b10 checkpoint 3979 | -6/Proximity Caves | Found Prototype Device 3979 | -6/Proximity Caves | Identified Exp. Thermal Shield 3993 | -6/Proximity Caves | Destroyed 7 combat bots 4090 | -6/Proximity Caves | Learned 4 Factory zone layouts 4115 | -6/Proximity Caves | Learned Factory emergency access door positions 4217 | -6/Proximity Caves | Discovered new exit (range 19) 4239 | -6/Proximity Caves | Entered Factory 4239 | -6/Factory | Accompanied by 1 ally 4239 | -6/Factory | Evolved 2 slots: Propulsion x1, Utility x1 4242 | -6/Factory | Loaded intel: 20 terminal locations 4260 | -6/Factory | Build established: Scavenger-Tank 4348 | -6/Factory | Garrison activated, responded to threat 4979 | -6/Factory | Discovered new exit (range 13) 5089 | -6/Factory | Build established: Mutant 5405 | -6/Factory | Repaired Titanium Leg 5730 | -6/Factory | Discovered new exit (range 7) 5843 | -6/Factory | Build established: Gunner 6000 | -6/Factory | Entered Lower Caves 6035 | -6/Lower Caves | Learned 4 Factory zone layouts 6177 | -6/Lower Caves | Attracted the attention of an 0b10 checkpoint 6261 | -6/Lower Caves | Attracted the attention of an 0b10 outpost 6345 | -6/Lower Caves | Lost 7 parts (1p2n2u2w) 6580 | -6/Lower Caves | Build established: Mutant 6836 | -6/Lower Caves | Spotted B-75 Beast 6985 | -6/Lower Caves | Discovered new exit (range 10) 6990 | -6/Lower Caves | Identified exit to Lower Caves 6990 | -6/Lower Caves | Entered another Lower Caves area 6991 | -6/Lower Caves | Lost 3 parts (1n1u1w) 7001 | -6/Lower Caves | Encountered a Warlord checkpoint 7040 | -6/Lower Caves | Discovered new exit (range 6) 7043 | -6/Lower Caves | Identified exit to Factory 7044 | -6/Lower Caves | Entered Factory 7044 | -5/Factory | Evolved 2 slots: Utility x1, Weapon x1 7045 | -5/Factory | Identified exit to Upper Caves 8569 | -5/Factory | Discovered exit to Upper Caves (range 22) 8631 | -5/Factory | Discovered new exit (range 8) 8641 | -5/Factory | Identified exit to Factory 8642 | -5/Factory | Entered another Factory area 8642 | -4/Factory | Evolved 2 slots: Utility x2 8704 | -4/Factory | Spotted B-86 Titan 9142 | -4/Factory | First assault squad dispatched 9308 | -4/Factory | Spotted B-86 Titan 9318 | -4/Factory | Lost 17 parts (5n3u9w) 9329 | -4/Factory | Discovered new exit (range 18) 9340 | -4/Factory | Core integrity fell below 50% 9346 | -4/Factory | Identified exit to Upper Caves 9347 | -4/Factory | Entered Upper Caves 9466 | -4/Upper Caves | Encountered a Warlord checkpoint 9652 | -4/Upper Caves | Spotted B-86 Titan 9682 | -4/Upper Caves | Discovered new exit (range 9) 9686 | -4/Upper Caves | Identified exit to Upper Caves 9689 | -4/Upper Caves | Attracted the attention of an 0b10 outpost 9691 | -4/Upper Caves | Entered another Upper Caves area 9720 | -4/Upper Caves | Discovered new exit (range 21) 9730 | -4/Upper Caves | Identified exit to Research 9731 | -4/Upper Caves | Entered Research 9731 | -3/Research | Evolved 2 slots: Propulsion x2 9776 | -3/Research | Found Enh. Force Lance 10029 | -3/Research | Spotted B-86 Titan 10057 | -3/Research | Spotted B-86 Titan 10067 | -3/Research | Lost 3 parts (1n2u) 10159 | -3/Research | Core integrity fell below 50% 10225 | -3/Research | Discovered new exit (range 14) 10230 | -3/Research | Core integrity fell below 20% 10231 | -3/Research | Entered Testing 10389 | -3/Testing | Found Prototype Hackware 10389 | -3/Testing | Identified Ghost Barrier 10460 | -3/Testing | Fabricated Biometal Heavy Treads (x2) 10528 | -3/Testing | Scanned by Researcher 10532 | -3/Testing | Found Prototype Protection 10532 | -3/Testing | Identified SHELL Armor 10541 | -3/Testing | Destroyed by P-80 Master with Gamma Rifle Last Messages --------------- 10527_ Connecting with Regeneration Lab... 10527_ Reinforced Shell breached. 10528_ C-55 Analyst: "REQUESTING IMMEDIATE REINFORCEMENTS." 10528_ C-55 Analyst calls for reinforcements. 10528_ ALERT: Hostile activity reported, dispatching reinforcements to area. 10528_ Held in stasis. 10528_ C-55 Analyst is analyzing... 10528_ ALERT: Encountered unknown unique technology, formulating response. 10530_ Machine disabled. 10532_ Acquired Prototype Protection. 10532_ Identified SHELL Armor. 10533_ Held in stasis. 10533_ C-55 Analyst is analyzing... 10533_ Destroyed System Guard. 10533_ C-55 Analyst system corrupted by crushing effect. 10534_ C-55 Analyst system terminally corrupted. 10534_ Sml. Storage Unit fried. 10534_ Antigrav System fried. 10541_ P-80 Master knocked back. Map ----- +----------------------------------------------------+ | | | | | | | | | | | | | | | | | | | | | | | | | | | | | | | ??????????????????????????????????########???????? | | ??????????????????????????????????# !#???????? | | ??????????????????????????????????#"""" #????#### | | ??????????????????????????????????#"""" ##### # | | ??????????????????????????????????#"""" + + | | ?????????????????????????????????##"""" # # | | ????????????????????????########## !# ## | | ????????????????????????#!# T #######+## #? | | ????????????????????????#!"p #?????# ## #? | | ????????????????????????#!%p #?????# ## #### #? | | ????????????????????????#@"T# #?????# ## #????#? | | ????????????????????????###### #?#####+## #?????? | | ?????????????????????????????# #?# # #?????? | | ????????????????????????###### #?#! # #?????? | | ????????????????????????# #?# # #??#+## | | ????????????????????????# #?# # #? | | ????????????????????????# #?# + +? | | ???????????????##????#### #?# # # | | ???????????????# ??? # ########## # | | ???????????????#! """ ! # + = | | ???????????????# """ # ############# # ! | | ???????????????# """ + #?????????### ####### | | ?????????????### """ # #?????????# ####? | | ?????????????? / """ # ########### "" #? | | ???????????????# """ !# # + T #? | | ????????????????] """ # # # #? | | ?????????????????? !?# # # ! ####? | | ?????????????????###+#### # ### ###???? | | ?????????????????# / #?# #?????? | | ?????????????????# # #?# #?????? | | ?#???????????????# # #?# #?????? | | ?? ?????????????# # = #?# #?????? | | ??? ????????????# ##################?# #?????? | | ????? ??????????# #??????????????????? #?????? | | ######+########## #??????????????????? #?????? | +----------------------------------------------------+ Best States ------------- Heat Dissipation 81 Energy Generation 21 Energy Capacity 325 Matter Stores 350 Matter Capacity 350 Sight Range 22 Robot Scan Range 16 Terrain Scan Density 10 Power Amplification 40 Armor Coverage 900 Resistance: TH 30 Propulsion Shielding 33 Evasion (%) 62 Targeting Accuracy 16 Target Analysis 6 Recoil Reduction 3 Kinecelleration 30 Offensive Hacking 11 Defensive Hacking 20 Item Schematics ----------------- Combat Drone Bay | -7/Data Miner | Free Exp. Flexi-carbon Leg | -7/Data Miner | Free Exp. Transmission Jammer | -7/Data Miner | Free Lgt. Regenerative Plating | -7/Data Miner | Free Exp. ECM Suite | -7/Data Miner | Free Cloaking Device | -7/Data Miner | Free Mni. Smartbomb Launcher | -7/Data Miner | Free Robot Schematics ------------------ S-27 Virus | -7/Data Miner | Free G-50 Soldier | -7/Data Miner | Free G-67 Veteran | -7/Data Miner | Free X-72 Disruptor | -7/Data Miner | Free I-36 Angel | -7/Data Miner | Free I-47 Archangel | -7/Data Miner | Free Fabricated ------------ Biometal Heavy Treads | x2 | -3/Testing | Preloaded Alien Tech Used ----------------- None Achievements -------------- None Challenges ------------ None Game ------ Seed ShieldTargetingProjector Manual? 0 Play Time 01:26:51 Cumulative 301.2 hours Start 2021.08.14 @ 07:51:27 End 2021.08.17 @ 12:40:12 Sessions 5 Manual Loads 0 Difficulty Rogue Special Mode None Game No. 387 Rogue 383 Adventurer 0 Explorer 4 Win Type - Total 5 Types 4/0/0/1/0/0/0/0/0 Lore% 81 Gallery% 90 Achievement% 63 Wizard Run 0 Options --------- ASCII 1 Keyboard 1 Movement Numpad Keybinds 0 Fullscreen 2 Font 18/Terminus Map View 76x50 Tactical HUD 1 Map Filters NONE Filters NONE Steam 1 RUN: 84e08a1c-9cca-462f-9a07-f9a34a375e27